fUST/lending_fUST_20260402
["ID","MTS","AMOUNT","RATE_DAILY","PERIOD"]
[419301047,1775135432268,-196.991053,0.0001844,2]
[419301049,1775135432278,-196.2501007,0.0001844,2]
[419301051,1775135432287,-55071.66599551,0.00018515,2]
[419301053,1775135432300,-1004.47234941,0.00018515,2]
[419301056,1775135432317,-2343.0,0.00018515,2]
[419301058,1775135432329,-24104.14395032,0.00018515,2]
[419301060,1775135432340,-466.64616542,0.00018515,2]
[419301062,1775135432351,-2994.07694886,0.00018515,2]
[419301065,1775135432363,-1321.64596435,0.00018515,2]
[419301067,1775135432374,-2094.96246121,0.00018515,2]
[419301069,1775135432386,-34312.17649553,0.00018515,2]
[419301072,1775135432398,-4674.09999998,0.00018515,2]
[419301074,1775135432409,-1012.27440141,0.00018515,2]
[419301076,1775135432420,-3802.36708602,0.00018515,2]
[419301078,1775135432432,-440.41335325,0.00018515,2]
[419301264,1775135438249,-26083.69631959,0.00018515,2]
[419301266,1775135438259,-1258544.81563221,0.00018515,2]
[419301268,1775135438269,-7946.15986566,0.00018515,2]
[419301270,1775135438279,-500.0,0.00018573,2]
[419301272,1775135438289,-500.0,0.00018573,2]
[419301274,1775135438298,-166.59343314,0.00018573,2]
[419301277,1775135438307,-500.0,0.00018573,2]
[419301279,1775135438317,-500.0,0.00018573,2]
[419301282,1775135438326,-160.60342134,0.00018573,2]
[419301284,1775135438336,-169.033874,0.00018573,2]
[419301287,1775135438346,-543.27181438,0.00018573,2]
[419301289,1775135438355,-500.0,0.00018573,2]
[419301292,1775135438365,-500.0,0.00018573,2]
[419301294,1775135438375,-500.0,0.00018573,2]
[419301296,1775135438384,-529.92267129,0.00018573,2]
[419301298,1775135438394,-500.0,0.00018573,2]
[419301300,1775135438403,-500.0,0.00018573,2]
[419301302,1775135438413,-500.0,0.00018573,2]
[419301304,1775135438423,-501.25981471,0.00018573,2]
[419301306,1775135438432,-163.36617521,0.00018573,2]
[419301308,1775135438442,-500.0,0.00018573,2]
[419301310,1775135438452,-500.6964095,0.00018573,2]
[419301312,1775135438462,-500.0,0.00018573,2]
[419301314,1775135438471,-500.0,0.00018573,2]
[419301316,1775135438481,-530.27666316,0.00018573,2]
[419301318,1775135438491,-536.03733111,0.00018573,2]
[419301321,1775135438500,-500.0,0.00018573,2]
[419301323,1775135438510,-151.0,0.000186,2]
[419301325,1775135438520,-151.0,0.000186,2]
[419301327,1775135438529,-224.9407231,0.00018603,2]
[419301329,1775135438539,-644.79446246,0.00018603,2]
[419301331,1775135438549,-2579.17784983,0.00018603,2]
[419301333,1775135438558,-176.28939331,0.00018647,2]
[419301335,1775135438568,-176.28939331,0.00018647,2]
[419301337,1775135438578,-668.65185757,0.00018658,2]
[419301339,1775135438588,-500.0,0.00018673,2]
[419301341,1775135438598,-500.68172289,0.00018673,2]
[419301343,1775135438608,-503.14466488,0.00018673,2]
[419301345,1775135438618,-559.0584784,0.00018673,2]
[419301347,1775135438630,-500.52126751,0.00018673,2]
[419301349,1775135438639,-500.22325171,0.00018673,2]
[419301351,1775135438650,-500.0,0.00018673,2]
[419301353,1775135438660,-693.3919763,0.00018713,2]
[419301355,1775135438669,-735.99,0.00018715,2]
[419301357,1775135438679,-735.99,0.00018715,2]
[419301359,1775135438689,-735.99,0.00018715,2]
[419301361,1775135438698,-735.99,0.00018715,2]
[419301363,1775135438707,-735.99,0.00018715,2]
[419301365,1775135438716,-735.99,0.00018715,2]
[419301367,1775135438725,-909.87,0.00018715,2]
[419301369,1775135438735,-353.52652738,0.00018735,2]
[419301371,1775135438744,-865.84024339,0.00018768,2]
[419301373,1775135438753,-500.0,0.00018773,2]
[419301375,1775135438763,-500.0,0.00018773,2]
[419301377,1775135438773,-500.0,0.00018773,2]
[419301379,1775135438783,-250.0,0.00018822,4]
[419301381,1775135438793,-500.0,0.00018872,2]
[419301383,1775135438803,-501.15601807,0.00018873,2]
[419301385,1775135438813,-600.0,0.00018884,2]
[419301387,1775135438822,-500.0,0.00018914,2]
[419301390,1775135438832,-500.0,0.00018914,2]
[419301392,1775135438842,-500.0,0.00018914,2]
[419301394,1775135438851,-500.0,0.00018914,2]
[419301396,1775135438861,-500.0,0.00018914,2]
[419301398,1775135438870,-500.0,0.00018914,2]
[419301400,1775135438880,-500.0,0.00018914,2]
[419301402,1775135438889,-500.0,0.00018914,2]
[419301404,1775135438899,-500.0,0.00018914,2]
[419301406,1775135438908,-500.0,0.00018914,2]
[419301408,1775135438918,-500.0,0.00018914,2]
[419301410,1775135438929,-500.0,0.00018914,2]
[419301412,1775135438938,-500.0,0.00018914,2]
[419301414,1775135438947,-293.8933,0.00018914,2]
[419301416,1775135438956,-464.24800222,0.00018914,2]
[419301418,1775135438966,-500.0,0.00018914,2]
[419301420,1775135438976,-500.0,0.00018914,2]
[419301422,1775135438985,-500.0,0.00018914,2]
[419301424,1775135438995,-500.0,0.00018914,2]
[419301426,1775135439005,-500.0,0.00018914,2]
[419301428,1775135439014,-5000.0,0.00018915,2]
[419301430,1775135439024,-5000.0,0.00018915,2]
[419301432,1775135439033,-12588.948,0.00018915,2]
[419301434,1775135439043,-500.0,0.00019003,2]
[419301436,1775135439053,-631.63078079,0.00019003,2]
[419301438,1775135439064,-500.0,0.00019014,2]
[419301440,1775135439073,-500.0,0.00019014,2]
[419301442,1775135439082,-500.0,0.00019014,2]
[419301445,1775135439092,-500.0,0.00019014,2]
[419301447,1775135439102,-193.46051808,0.00019014,2]
[419301449,1775135439111,-5000.0,0.00019104,2]
[419301451,1775135439121,-1000.0,0.00019121,2]
[419301453,1775135439130,-1000.0,0.00019121,2]
[419301455,1775135439139,-1000.0,0.00019121,2]
[419301457,1775135439149,-157.92883278,0.00019121,2]
[419301459,1775135439159,-1000.0,0.00019121,2]
[419301461,1775135439168,-1000.0,0.00019121,2]
[419301463,1775135439180,-1126.11474146,0.00019121,2]
[419301465,1775135439189,-1000.0,0.00019121,2]
[419301467,1775135439199,-1000.0,0.00019121,2]
[419301469,1775135439209,-1000.0,0.00019121,2]
[419301471,1775135439218,-155.19142943,0.00019121,2]
[419301473,1775135439228,-1000.0,0.00019121,2]
[419301475,1775135439237,-1000.0,0.00019121,2]
[419301477,1775135439246,-1000.0,0.00019121,2]
[419301479,1775135439256,-2674.60743027,0.00019151,2]
[419301481,1775135439266,-151.238552,0.00019178,2]
[419301483,1775135439276,-151.0,0.00019178,2]
[419301485,1775135439285,-200.0,0.00019178,2]
[419301487,1775135439294,-329.1067,0.00019178,2]
[419301489,1775135439304,-200.0,0.00019178,2]
[419301491,1775135439313,-1000.0,0.00019178,2]
[419301493,1775135439323,-1000.0,0.00019178,2]
[419301495,1775135439332,-1000.0,0.00019178,2]
[419301497,1775135439341,-1000.0,0.00019178,2]
[419301499,1775135439351,-1000.0,0.00019178,2]
[419301501,1775135439360,-1000.0,0.00019178,2]
[419301503,1775135439371,-1000.0,0.00019178,2]
[419301505,1775135439381,-1000.0,0.00019178,2]
[419301508,1775135439390,-1000.0,0.00019178,2]
[419301510,1775135439401,-1000.0,0.00019178,2]
[419301512,1775135439410,-1000.0,0.00019178,2]
[419301514,1775135439420,-1000.0,0.00019178,2]
[419301516,1775135439430,-1000.0,0.00019178,2]
[419301518,1775135439440,-1000.0,0.00019178,2]
[419301520,1775135439451,-1000.0,0.00019178,2]
[419301522,1775135439461,-1000.0,0.00019178,2]
[419301524,1775135439471,-1000.0,0.00019178,2]
[419301526,1775135439480,-1000.0,0.00019178,2]
[419301527,1775135439490,-1000.0,0.00019178,2]
[419301529,1775135439500,-1000.0,0.00019178,2]
[419301531,1775135439510,-1000.0,0.00019178,2]
[419301533,1775135439520,-1000.0,0.00019178,2]
[419301534,1775135439533,-1000.0,0.00019178,2]
[419301536,1775135439543,-1000.0,0.00019178,2]
[419301538,1775135439553,-1000.0,0.00019178,2]
[419301540,1775135439563,-1000.0,0.00019178,2]
[419301542,1775135439573,-1000.0,0.00019178,2]
[419301543,1775135439583,-1000.0,0.00019178,2]
[419301545,1775135439593,-1000.0,0.00019178,2]
[419301547,1775135439603,-1000.0,0.00019178,2]
[419301548,1775135439612,-1000.0,0.00019178,2]
[419301549,1775135439621,-1000.0,0.00019178,2]
[419301554,1775135439727,-1000.0,0.00019178,2]
[419301555,1775135439737,-1000.0,0.00019178,2]
[419301556,1775135439747,-1000.0,0.00019178,2]
[419301558,1775135439757,-1000.0,0.00019178,2]
[419301560,1775135439768,-1000.0,0.00019178,7]
[419301561,1775135439778,-1000.0,0.00019178,7]
[419301563,1775135439788,-1000.0,0.00019178,7]
[419301564,1775135439798,-1000.0,0.00019178,7]
[419301566,1775135439807,-1000.0,0.00019178,7]
[419301568,1775135439817,-1000.0,0.00019178,7]
[419301569,1775135439827,-1000.0,0.00019178,7]
[419301571,1775135439836,-1000.0,0.00019178,7]
[419301572,1775135439846,-1000.0,0.00019178,7]
[419301573,1775135439856,-1000.0,0.00019178,7]
[419301574,1775135439866,-1000.0,0.00019178,7]
[419301575,1775135439876,-1000.0,0.00019178,7]
[419301576,1775135439885,-1000.0,0.00019178,7]
[419301578,1775135439895,-1000.0,0.00019178,7]
[419301579,1775135439904,-1000.0,0.00019178,7]
[419301581,1775135439914,-1000.0,0.00019178,7]
[419301582,1775135439925,-1000.0,0.00019178,7]
[419301584,1775135439934,-1000.0,0.00019178,7]
[419301586,1775135439945,-1000.0,0.00019178,7]
[419301587,1775135439954,-1000.0,0.00019178,7]
[419301589,1775135439964,-1000.0,0.00019178,7]
[419301590,1775135439973,-1000.0,0.00019178,7]
[419301592,1775135439983,-1000.0,0.00019178,7]
[419301593,1775135439993,-1000.0,0.00019178,7]
[419301595,1775135440003,-1000.0,0.00019178,7]
[419301596,1775135440012,-1000.0,0.00019178,7]
[419301597,1775135440023,-1000.0,0.00019178,7]
[419301599,1775135440032,-1000.0,0.00019178,7]
[419301601,1775135440042,-1000.0,0.00019178,7]
[419301603,1775135440051,-1000.0,0.00019178,7]
[419301604,1775135440061,-1000.0,0.00019178,7]
[419301606,1775135440071,-1000.0,0.00019178,7]
[419301608,1775135440081,-1000.0,0.00019178,7]
[419301609,1775135440090,-1000.0,0.00019178,7]
[419301610,1775135440101,-1000.0,0.00019178,7]
[419301611,1775135440111,-1000.0,0.00019178,7]
[419301612,1775135440121,-737.14099851,0.00019178,7]
[419301613,1775135440131,-190.0,0.000192,2]
[419301614,1775135440141,-572.47574373,0.00019221,2]
[419301615,1775135440151,-652.87969258,0.00019223,2]
[419301616,1775135440161,-196.2208232,0.00019261,2]
[419301617,1775135440171,-196.170752,0.00019261,2]
[419301618,1775135440181,-155.0,0.00019314,2]
[419301619,1775135440191,-188.0,0.00019314,2]
[419301620,1775135440200,-199.0,0.00019315,2]
[419301621,1775135440210,-1000.0,0.00019321,2]
[419301622,1775135440220,-505.26683923,0.00019321,2]
[419301623,1775135440231,-500.0,0.000194,2]
[419301624,1775135440240,-2403.25738699,0.00019462,2]
[419301625,1775135440250,-2203.0,0.00019525,2]
[419301626,1775135440259,-1405.0,0.00019525,2]
[419301627,1775135440269,-643.0,0.00019525,2]
[419301628,1775135440279,-184.0,0.00019525,2]
[419301629,1775135440288,-561.42480622,0.00019668,2]
[419301630,1775135440299,-860.28346831,0.00019668,2]
[419301631,1775135440309,-1500.0,0.00019668,2]
[419301632,1775135440320,-1500.0,0.00019668,2]
[419301633,1775135440329,-505.52842045,0.00019668,2]
[419301634,1775135440339,-1500.0,0.00019668,2]
[419301635,1775135440349,-1001.69342998,0.00019668,2]
[419301636,1775135440359,-1500.0,0.00019668,2]
[419301637,1775135440369,-752.12436444,0.00019668,2]
[419301638,1775135440378,-176.97890293,0.00019668,2]
[419301639,1775135440388,-1500.0,0.00019668,2]
[419301640,1775135440398,-2773.56790519,0.00019699,2]
[419301641,1775135440408,-496.5,0.00019735,2]
[419301642,1775135440417,-3122.73,0.00019806,2]
[419301643,1775135440429,-308.0,0.00019855,2]
[419301644,1775135440438,-1500.0,0.00019868,2]
[419301645,1775135440447,-496.5,0.00019941,2]
[419301646,1775135440457,-1000.0,0.00019948,2]
[419301647,1775135440468,-160.88,0.0002,2]
[419301648,1775135440477,-500.0,0.0002,2]
[419301649,1775135440487,-496.5,0.00020147,2]
[419301650,1775135440497,-2000.0,0.00020216,2]
[419301651,1775135440508,-2000.0,0.00020216,2]
[419301652,1775135440517,-1512.43968481,0.00020216,2]
[419301653,1775135440527,-2000.0,0.00020216,2]
[419301654,1775135440537,-2006.11332033,0.00020216,2]
[419301655,1775135440546,-2876.18991768,0.00020247,2]
[419301656,1775135440555,-496.5,0.00020353,2]
[419301657,1775135440565,-168.0,0.00020356,2]
[419301658,1775135440575,-2000.0,0.00020416,2]
[419301659,1775135440584,-1500.0,0.00020496,2]
[419301660,1775135440594,-496.5,0.00020559,2]
[419301661,1775135440603,-2000.0,0.000206,2]
[419301662,1775135440613,-2000.0,0.000207,2]
[419301663,1775135440623,-2500.0,0.00020764,2]
[419301664,1775135440633,-2500.0,0.00020764,2]
[419301665,1775135440643,-2500.0,0.00020764,2]
[419301666,1775135440652,-496.5,0.00020765,2]
[419301667,1775135440662,-720.0,0.00020772,2]
[419301668,1775135440673,-2403.25738699,0.00020781,2]
[419301669,1775135440684,-2982.60894464,0.00020795,2]
[419301670,1775135440695,-190.0,0.000208,2]
[419301671,1775135440706,-2000.0,0.000208,2]
[419301672,1775135440716,-308.0,0.00020855,2]
[419301673,1775135440725,-1100.0,0.000209,2]
[419301674,1775135440735,-2000.0,0.000209,2]
[419301675,1775135440745,-2500.0,0.00020964,2]
[419301676,1775135440754,-496.5,0.0002097,2]
[419301677,1775135440764,-2000.0,0.00021,2]
[419301678,1775135440774,-1411.461812,0.00021,2]
[419301679,1775135440785,-2000.0,0.00021044,2]
[419301680,1775135440795,-5113.07194902,0.000211,2]
[419301681,1775135440805,-496.5,0.00021176,2]
[419301682,1775135440815,-333.0,0.0002119,2]
[419301683,1775135440825,-1649.89014707,0.00021312,2]
[419301684,1775135440835,-3000.0,0.00021312,2]
[419301685,1775135440845,-3000.0,0.00021312,2]
[419301686,1775135440855,-3092.96547559,0.00021343,2]
[419301687,1775135440865,-496.5,0.00021382,2]
[419301688,1775135440875,-446.42513875,0.00021512,2]
[419301689,1775135440884,-160.0,0.0002156,7]
[419301690,1775135440895,-607.226197,0.0002156,7]
[419301691,1775135440905,-1054.452394,0.0002156,7]
[419301692,1775135440915,-496.5,0.00021588,2]
[419301693,1775135440925,-2104.85296525,0.00021592,2]
[419301694,1775135440934,-250.0,0.00021661,4]
[419301695,1775135440943,-196.2501007,0.00021753,2]
[419301696,1775135440954,-496.5,0.00021794,2]
[419301697,1775135440964,-160.0,0.00021834,2]
[419301698,1775135440973,-160.0,0.00021834,2]
[419301699,1775135440983,-308.0,0.00021855,2]
[419301700,1775135440992,-3500.0,0.0002186,2]
[419301701,1775135441002,-1568.1509724,0.0002186,2]
[419301702,1775135441012,-3207.40519818,0.00021891,2]
[419301703,1775135441021,-1100.0,0.000219,2]
[419301704,1775135441032,-151.521604,0.000219,2]
[419301706,1775135441041,-151.0,0.00021918,2]
[419301707,1775135441051,-151.0,0.00021918,2]
[419301709,1775135441060,-151.0,0.00021918,2]
[419301710,1775135441070,-151.0,0.00021918,2]
[419301711,1775135441079,-151.0,0.00021918,2]
[419301712,1775135441089,-151.0,0.00021918,2]
[419301713,1775135441099,-151.0,0.00021918,2]
[419301715,1775135441108,-279.992,0.00021918,2]
[419301717,1775135441118,-151.0,0.00021918,2]
[419301719,1775135441128,-151.0,0.00021918,2]
[419301721,1775135441138,-151.0,0.00021918,2]
[419301723,1775135441147,-151.0,0.00021918,2]
[419301724,1775135441156,-151.0,0.00021918,2]
[419301725,1775135441166,-234.756434,0.00021918,2]
[419301726,1775135441178,-151.0,0.00021918,2]
[419301727,1775135441187,-151.0,0.00021918,2]
[419301729,1775135441196,-151.0,0.00021918,2]
[419301731,1775135441205,-151.0,0.00021918,2]
[419301732,1775135441214,-151.0,0.00021918,2]
[419301734,1775135441223,-153.273585,0.00021918,2]
[419301736,1775135441232,-151.0,0.00021918,2]
[419301737,1775135441242,-151.0,0.00021918,2]
[419301739,1775135441252,-189.419477,0.00021918,2]
[419301740,1775135441262,-189.419477,0.00021918,2]
[419301742,1775135441271,-189.419477,0.00021918,2]
[419301743,1775135441281,-189.419477,0.00021918,2]
[419301745,1775135441291,-189.419477,0.00021918,2]
[419301747,1775135441300,-189.419477,0.00021918,2]
[419301749,1775135441310,-189.419477,0.00021918,2]
[419301751,1775135441321,-189.419477,0.00021918,2]
[419301753,1775135441330,-151.0,0.00021918,2]
[419301754,1775135441340,-151.0,0.00021918,2]
[419301756,1775135441350,-158.6357,0.00021918,2]
[419301758,1775135441360,-151.0,0.00021918,2]
[419301760,1775135441369,-151.0,0.00021918,2]
[419301762,1775135441378,-151.0,0.00021918,2]
[419301764,1775135441387,-151.0,0.00021918,2]
[419301766,1775135441397,-151.0,0.00021918,2]
[419301768,1775135441407,-151.0,0.00021918,2]
[419301769,1775135441416,-151.0,0.00021918,2]
[419301771,1775135441426,-151.0,0.00021918,2]
[419301773,1775135441436,-151.0,0.00021918,2]
[419301775,1775135441446,-151.0,0.00021918,2]
[419301777,1775135441456,-151.0,0.00021918,2]
[419301779,1775135441466,-151.0,0.00021918,2]
[419301781,1775135441475,-151.0,0.00021918,2]
[419301782,1775135441485,-151.0,0.00021918,2]
[419301784,1775135441495,-151.0,0.00021918,2]
[419301786,1775135441505,-151.0,0.00021918,2]
[419301788,1775135441515,-400.000329,0.00021918,2]
[419301790,1775135441524,-400.000329,0.00021918,2]
[419301792,1775135441534,-400.000329,0.00021918,2]
[419301794,1775135441544,-400.000329,0.00021918,2]
[419301796,1775135441554,-400.000329,0.00021918,2]
[419301798,1775135441564,-400.000329,0.00021918,2]
[419301800,1775135441573,-400.000329,0.00021918,2]
[419301801,1775135441583,-400.000329,0.00021918,2]
[419301803,1775135441594,-151.0,0.00021918,2]
[419301805,1775135441604,-151.0,0.00021918,2]
[419301807,1775135441614,-156.954771,0.00021918,2]
[419301809,1775135441624,-151.0,0.00021918,2]
[419301811,1775135441633,-296.2706,0.00021918,2]
[419301813,1775135441643,-296.2706,0.00021918,2]
[419301815,1775135441653,-296.2706,0.00021918,2]
[419301817,1775135441664,-296.2706,0.00021918,2]
[419301819,1775135441673,-300.335095,0.00021918,2]
[419301820,1775135441683,-4027.029947,0.00021918,2]
[419301822,1775135441693,-4027.029947,0.00021918,2]
[419301832,1775135441784,-4027.029947,0.00021918,2]
[419301834,1775135441794,-4027.029947,0.00021918,2]
[419301836,1775135441804,-4027.029947,0.00021918,2]
[419301838,1775135441814,-4027.029947,0.00021918,2]
[419301839,1775135441825,-4027.029947,0.00021918,2]
[419301841,1775135441835,-4027.029947,0.00021918,2]
[419301843,1775135441844,-151.0,0.00021918,2]
[419301845,1775135441854,-151.0,0.00021918,2]
[419301847,1775135441864,-151.0,0.00021918,2]
[419301849,1775135441873,-151.0,0.00021918,2]
[419301851,1775135441883,-871.439273,0.00021918,2]
[419301853,1775135441893,-871.439273,0.00021918,2]
[419301855,1775135441903,-871.439273,0.00021918,2]
[419301856,1775135441913,-871.439273,0.00021918,2]
[419301858,1775135441923,-871.439273,0.00021918,2]
[419301860,1775135441933,-871.439273,0.00021918,2]
[419301862,1775135441943,-180.946851,0.00021918,2]
[419301864,1775135441953,-180.946851,0.00021918,2]
[419301866,1775135441964,-871.439273,0.00021918,2]
[419301868,1775135441974,-871.439273,0.00021918,2]
[419301870,1775135441984,-180.946851,0.00021918,2]
[419301872,1775135441993,-180.946851,0.00021918,2]
[419301874,1775135442003,-180.946851,0.00021918,2]
[419301876,1775135442012,-151.0,0.00021918,2]
[419301878,1775135442022,-151.0,0.00021918,2]
[419301879,1775135442033,-329.1067,0.00021918,4]
[419301881,1775135442042,-151.0,0.00021918,2]
[419301883,1775135442052,-296.2706,0.00021918,2]
[419301885,1775135442062,-296.2706,0.00021918,2]
[419301887,1775135442072,-296.2706,0.00021918,2]
[419301889,1775135442083,-296.2706,0.00021918,2]
[419301891,1775135442096,-871.439273,0.00021918,2]
[419301893,1775135442106,-871.439273,0.00021918,2]
[419301895,1775135442115,-871.439273,0.00021918,2]
[419301896,1775135442125,-180.946851,0.00021918,2]
[419301898,1775135442134,-871.439273,0.00021918,2]
[419301900,1775135442143,-180.946851,0.00021918,2]
[419301902,1775135442153,-500.0,0.00021973,2]
[419301904,1775135442162,-500.0,0.00021973,2]
[419301906,1775135442170,-500.0,0.00021973,2]
[419301908,1775135442180,-513.04299143,0.00021973,2]
[419301909,1775135442189,-500.0,0.00021973,2]
[419301911,1775135442198,-500.0,0.00021973,2]
[419301913,1775135442208,-500.0,0.00021973,2]
[419301915,1775135442217,-500.0,0.00021973,2]
[419301917,1775135442227,-300.78091593,0.00021973,2]
[419301919,1775135442236,-178.1451225,0.00021973,2]
[419301921,1775135442245,-500.0,0.00021973,2]
[419301923,1775135442255,-500.0,0.00021973,2]
[419301924,1775135442264,-500.0,0.00021973,2]
[419301926,1775135442274,-189.419477,0.00021973,2]
[419301928,1775135442283,-189.419477,0.00021973,2]
[419301930,1775135442293,-189.419477,0.00021973,2]
[419301932,1775135442302,-189.419477,0.00021973,2]
[419301934,1775135442311,-151.0,0.00021973,2]
[419301936,1775135442321,-151.0,0.00021973,2]
[419301938,1775135442331,-574.17909185,0.00022,14]
[419301939,1775135442340,-155735.1689726,0.00022,2]
[419301941,1775135442350,-1000.0,0.00022,2]
[419301943,1775135442359,-496.5,0.00022,2]
[419301945,1775135442368,-757.0,0.00022,2]
[419301947,1775135442378,-160.0,0.00022,2]
[419301949,1775135442387,-151.0,0.00022,2]
[419301951,1775135442397,-151.0,0.00022,2]
[419301953,1775135442407,-151.0,0.00022,2]
[419301954,1775135442416,-151.0,0.00022,2]
[419301956,1775135442427,-151.0,0.00022,2]
[419301958,1775135442436,-151.0,0.00022,2]
[419301960,1775135442445,-151.0,0.00022,2]
[419301962,1775135442455,-151.0,0.00022,2]
[419301964,1775135442464,-151.0,0.00022,2]
[419301966,1775135442474,-151.0,0.00022,2]
[419301968,1775135442483,-151.0,0.00022,2]
[419301970,1775135442493,-151.0,0.00022,2]
[419301971,1775135442503,-189.419477,0.00022,2]
[419301973,1775135442512,-189.419477,0.00022,2]
[419301975,1775135442522,-189.419477,0.00022,2]
[419301977,1775135442532,-189.419477,0.00022,2]
[419301980,1775135442542,-151.0,0.00022,2]
[419301982,1775135442551,-151.0,0.00022,2]
[419301984,1775135442561,-151.0,0.00022,2]
[419301986,1775135442570,-151.0,0.00022,2]
[419301987,1775135442580,-151.0,0.00022,2]
[419301989,1775135442589,-163.0,0.00022,2]
[419301991,1775135442599,-151.0,0.00022,2]
[419301993,1775135442609,-151.0,0.00022,2]
[419301996,1775135442619,-151.0,0.00022,2]
[419301999,1775135442628,-151.0,0.00022,2]
[419302001,1775135442638,-185.0,0.00022,2]
[419302003,1775135442648,-400.000329,0.00022,2]
[419302005,1775135442658,-400.000329,0.00022,2]
[419302007,1775135442668,-400.000329,0.00022,2]
[419302009,1775135442678,-400.000329,0.00022,2]
[419302010,1775135442688,-151.0,0.00022,2]
[419302012,1775135442698,-159.782388,0.00022,2]
[419302014,1775135442707,-296.2706,0.00022,2]
[419302016,1775135442718,-296.2706,0.00022,2]
[419302018,1775135442728,-296.2706,0.00022,2]
[419302020,1775135442737,-296.2706,0.00022,2]
[419302022,1775135442747,-4027.029947,0.00022,2]
[419302023,1775135442756,-4027.029947,0.00022,2]
[419302024,1775135442766,-4027.029947,0.00022,2]
[419302025,1775135442775,-4027.029947,0.00022,2]
[419302026,1775135442785,-28783.125561,0.00022,2]
[419302028,1775135442794,-151.0,0.00022,2]
[419302030,1775135442803,-151.0,0.00022,2]
[419302031,1775135442812,-871.439273,0.00022,2]
[419302033,1775135442822,-871.439273,0.00022,2]
[419302034,1775135442831,-871.439273,0.00022,2]
[419302035,1775135442840,-180.946851,0.00022,2]
[419302036,1775135442850,-871.439273,0.00022,2]
[419302037,1775135442859,-180.946851,0.00022,2]
[419302038,1775135442869,-2403.25738699,0.00022101,2]
[419302039,1775135442878,-190.0,0.000224,2]
[419302040,1775135442888,-4000.0,0.00022408,2]
[419302041,1775135442898,-150.36425681,0.00022466,2]
[419302042,1775135442907,-1000.0,0.00022521,2]
[419302043,1775135442917,-1000.0,0.00022521,2]
[419302044,1775135442928,-1000.0,0.00022521,2]
[419302045,1775135442936,-1000.0,0.00022521,2]
[419302046,1775135442946,-1000.0,0.00022521,2]
[419302047,1775135442955,-150.35641528,0.00022521,2]
[419302048,1775135442963,-784.95817064,0.00022521,2]
[419302049,1775135442973,-965.31933397,0.00022521,2]
[419302050,1775135442982,-503.79880794,0.00022521,2]
[419302051,1775135442991,-1000.0,0.00022521,2]
[419302052,1775135443000,-1000.0,0.00022521,2]
[419302053,1775135443010,-1146.513,0.00022525,2]
[419302054,1775135443020,-1401.0,0.00022525,2]
[419302055,1775135443029,-643.0,0.00022525,2]
[419302056,1775135443039,-184.0,0.00022525,2]
[419302057,1775135443048,-828.035723,0.00022638,14]
[419302058,1775135443058,-864.0,0.00022849,10]
[419302059,1775135443067,-308.0,0.00022855,2]
[419302060,1775135443076,-1100.0,0.000229,2]
[419302061,1775135443086,-4500.0,0.00022956,2]
[419302062,1775135443096,-1000.0,0.00023,10]
[419302063,1775135443106,-1000.0,0.00023,10]
[419302064,1775135443116,-1000.0,0.00023,10]
[419302065,1775135443126,-1000.0,0.00023,10]
[419302066,1775135443135,-1000.0,0.00023,10]
[419302067,1775135443145,-1000.0,0.00023,10]